fUSD/lending_fUSD_20240718
["ID","MTS","AMOUNT","RATE_DAILY","PERIOD"]
[332520478,1721287976686,-695.01,0.00023013,2]
[332520479,1721287976695,-500.0,0.00023013,2]
[332520480,1721287976705,-500.0,0.00023013,2]
[332520481,1721287976714,-500.0,0.00023013,2]
[332520482,1721287976725,-518.09,0.00023013,2]
[332520483,1721287976734,-500.0,0.00023013,2]
[332520484,1721287976743,-500.0,0.00023013,2]
[332520485,1721287976752,-500.0,0.00023013,2]
[332520486,1721287976761,-813.28,0.00023013,2]
[332520487,1721287976771,-1656.81,0.00023013,2]
[332520488,1721287976780,-500.0,0.00023013,2]
[332520489,1721287976790,-500.0,0.00023013,2]
[332520490,1721287976799,-945.22,0.00023013,2]
[332520491,1721287976808,-500.0,0.00023013,2]
[332520492,1721287976817,-500.0,0.00023013,2]
[332520493,1721287976826,-947.17,0.00023013,2]
[332520494,1721287976835,-539.79,0.00023013,2]
[332520495,1721287976844,-500.0,0.00023013,2]
[332520496,1721287976853,-706.37,0.00023013,2]
[332520497,1721287976862,-500.0,0.00023013,2]
[332520498,1721287976872,-500.0,0.00023013,2]
[332520499,1721287976881,-500.0,0.00023013,2]
[332520500,1721287976890,-500.0,0.00023013,2]
[332520501,1721287976900,-500.0,0.00023013,2]
[332520502,1721287976909,-500.0,0.00023013,2]
[332520503,1721287976918,-1135.75,0.00023013,2]
[332520504,1721287976928,-500.0,0.00023013,2]
[332520505,1721287976938,-500.0,0.00023013,2]
[332520506,1721287976948,-500.0,0.00023013,2]
[332520507,1721287976958,-673.53,0.00023013,2]
[332520508,1721287976967,-836.84,0.00023013,2]
[332520509,1721287976977,-3128.96,0.00023013,2]
[332520510,1721287976986,-500.0,0.00023013,2]
[332520511,1721287976995,-500.0,0.00023013,2]
[332520512,1721287977004,-500.0,0.00023013,2]
[332520513,1721287977013,-500.0,0.00023013,2]
[332520514,1721287977022,-500.0,0.00023013,2]
[332520515,1721287977031,-620.06130304,0.00023013,2]
[332520516,1721287977042,-842.49,0.00023013,2]
[332520517,1721287977051,-500.0,0.00023013,2]
[332520518,1721287977060,-557.31,0.00023013,2]
[332520519,1721287977069,-669.1,0.00023013,2]
[332520520,1721287977079,-3223.32,0.00023013,2]
[332520521,1721287977088,-500.0,0.00023013,2]
[332520522,1721287977097,-500.0,0.00023013,2]
[332520523,1721287977107,-542.57,0.00023013,2]
[332520524,1721287977116,-199.65737015,0.00023013,2]
[332520525,1721287977126,-884.02,0.00023013,2]
[332520526,1721287977135,-500.0,0.00023013,2]
[332520527,1721287977144,-1416.46,0.00023013,2]
[332520528,1721287977155,-525.77,0.00023013,2]
[332520529,1721287977164,-500.0,0.00023013,2]
[332520530,1721287977174,-500.0,0.00023013,2]
[332520531,1721287977183,-808.77,0.00023013,2]
[332520532,1721287977193,-500.0,0.00023013,2]
[332520533,1721287977202,-235.01136901,0.00023013,2]
[332520534,1721287977212,-888.04,0.00023013,2]
[332520535,1721287977221,-500.0,0.00023013,2]
[332520536,1721287977230,-813.18,0.00023013,2]
[332520537,1721287977240,-2204.96,0.00023013,2]
[332520538,1721287977249,-500.0,0.00023013,2]
[332520539,1721287977258,-500.0,0.00023013,2]
[332520540,1721287977267,-617.34,0.00023013,2]
[332520541,1721287977277,-503.15,0.00023013,2]
[332520542,1721287977286,-500.0,0.00023013,2]
[332520543,1721287977295,-500.0,0.00023013,2]
[332520544,1721287977304,-500.0,0.00023013,2]
[332520545,1721287977313,-504.90678534,0.00023013,2]
[332520546,1721287977323,-550.97,0.00023013,2]
[332520547,1721287977331,-500.0,0.00023013,2]
[332520548,1721287977341,-333.28214743,0.00023013,2]
[332520549,1721287977350,-500.0,0.00023013,2]
[332520550,1721287977360,-773.79,0.00023013,2]
[332520551,1721287977369,-502.37249923,0.00023013,2]
[332520552,1721287977378,-1258.11,0.00023013,2]
[332520553,1721287977387,-556.49,0.00023013,2]
[332520554,1721287977397,-1541.61,0.00023013,2]
[332520555,1721287977408,-500.0,0.00023013,2]
[332520556,1721287977417,-1497.76,0.00023013,2]
[332520557,1721287977427,-500.0,0.00023013,2]
[332520558,1721287977436,-923.36,0.00023013,2]
[332520559,1721287977445,-500.0,0.00023013,2]
[332520560,1721287977456,-500.0,0.00023013,2]
[332520561,1721287977464,-500.0,0.00023013,2]
[332520562,1721287977473,-500.0,0.00023013,2]
[332520563,1721287977482,-698.16,0.00023013,2]
[332520564,1721287977491,-1777.63,0.00023013,2]
[332520565,1721287977501,-500.0,0.00023013,2]
[332520566,1721287977509,-1751.66,0.00023013,2]
[332520567,1721287977519,-500.0,0.00023013,2]
[332520568,1721287977528,-500.0,0.00023013,2]
[332520569,1721287977538,-500.0,0.00023013,2]
[332520570,1721287977547,-500.0,0.00023013,2]
[332520571,1721287977556,-1440.65,0.00023013,2]
[332520572,1721287977565,-702.74,0.00023013,2]
[332520573,1721287977574,-748.62,0.00023013,2]
[332520574,1721287977583,-500.0,0.00023013,2]
[332520575,1721287977592,-500.0,0.00023013,2]
[332520576,1721287977601,-500.0,0.00023013,2]
[332520577,1721287977610,-600.34,0.00023013,2]
[332520578,1721287977619,-500.0,0.00023013,2]
[332520579,1721287977630,-500.0,0.00023013,2]
[332520580,1721287977642,-1459.37,0.00023013,2]
[332520581,1721287977653,-500.0,0.00023013,2]
[332520582,1721287977663,-367.8903004,0.00023013,2]
[332520583,1721287977672,-834.65,0.00023013,2]
[332520584,1721287977681,-574.9,0.00023013,2]
[332520585,1721287977692,-967.34,0.00023013,2]
[332520586,1721287977702,-500.0,0.00023013,2]
[332520587,1721287977716,-945.46,0.00023013,2]
[332520588,1721287977726,-6789.46,0.00023013,2]
[332520589,1721287977739,-500.0,0.00023013,2]
[332520590,1721287977748,-500.0,0.00023013,2]
[332520591,1721287977758,-517.35680584,0.00023013,2]
[332520592,1721287977768,-1649.03,0.00023013,2]
[332520593,1721287977777,-1351.16,0.00023013,2]
[332520594,1721287977787,-846.83,0.00023013,2]
[332520595,1721287977796,-3838.48,0.00023013,2]
[332520596,1721287977806,-727.83,0.00023013,2]
[332520597,1721287977815,-500.0,0.00023013,2]
[332520598,1721287977825,-500.0,0.00023013,2]
[332520599,1721287977835,-500.0,0.00023013,2]
[332520600,1721287977844,-500.0,0.00023013,2]
[332520601,1721287977854,-1099.8,0.00023013,2]
[332520602,1721287977863,-592.88,0.00023013,2]
[332520603,1721287977872,-500.0,0.00023013,2]
[332520604,1721287977882,-500.0,0.00023013,2]
[332520605,1721287977892,-758.27,0.00023013,2]
[332520606,1721287977903,-1314.69,0.00023013,2]
[332520607,1721287977912,-660.25,0.00023013,2]
[332520608,1721287977922,-500.0,0.00023013,2]
[332520609,1721287977932,-1225.2,0.00023013,2]
[332520610,1721287977942,-690.8,0.00023013,2]
[332520611,1721287977951,-500.0,0.00023013,2]
[332520612,1721287977961,-500.0,0.00023013,2]
[332520613,1721287977970,-815.9,0.00023013,2]
[332520614,1721287977980,-500.0,0.00023013,2]
[332520615,1721287977989,-500.0,0.00023013,2]
[332520616,1721287978000,-500.0,0.00023013,2]
[332520617,1721287978010,-500.0,0.00023013,2]
[332520618,1721287978019,-1445.6,0.00023013,2]
[332520619,1721287978029,-1211.24,0.00023013,2]
[332520620,1721287978039,-1000.0,0.00023013,2]
[332520621,1721287978049,-764.9,0.00023013,2]
[332520622,1721287978059,-500.0,0.00023013,2]
[332520623,1721287978069,-500.0,0.00023013,2]
[332520624,1721287978079,-500.0,0.00023013,2]
[332520625,1721287978090,-1017.79,0.00023013,2]
[332520626,1721287978100,-500.0,0.00023013,2]
[332520627,1721287978110,-500.0,0.00023013,2]
[332520628,1721287978120,-500.0,0.00023013,2]
[332520629,1721287978131,-500.0,0.00023013,2]
[332520630,1721287978141,-500.0,0.00023013,2]
[332520631,1721287978152,-500.0,0.00023013,2]
[332520632,1721287978163,-819.77,0.00023013,2]
[332520633,1721287978173,-500.0,0.00023013,2]
[332520634,1721287978184,-500.0,0.00023013,2]
[332520635,1721287978194,-843.65,0.00023013,2]
[332520636,1721287978204,-508.09,0.00023013,2]
[332520637,1721287978214,-1121.8,0.00023013,2]
[332520638,1721287978224,-500.0,0.00023013,2]
[332520639,1721287978234,-4510.49,0.00023013,2]
[332520640,1721287978245,-500.0,0.00023013,2]
[332520641,1721287978255,-500.0,0.00023013,2]
[332520642,1721287978264,-500.0,0.00023013,2]
[332520643,1721287978274,-500.0,0.00023013,2]
[332520644,1721287978284,-548.62,0.00023013,2]
[332520645,1721287978294,-615.98,0.00023013,2]
[332520646,1721287978304,-732.51,0.00023013,2]
[332520647,1721287978314,-500.0,0.00023013,2]
[332520648,1721287978324,-500.0,0.00023013,2]
[332520649,1721287978334,-500.0,0.00023013,2]
[332520650,1721287978344,-727.51,0.00023013,2]
[332520651,1721287978354,-500.0,0.00023013,2]
[332520652,1721287978364,-699.69,0.00023013,2]
[332520653,1721287978375,-780.84,0.00023013,2]
[332520654,1721287978385,-985.19,0.00023013,2]
[332520655,1721287978394,-500.0,0.00023013,2]
[332520656,1721287978406,-2219.16,0.00023013,2]
[332520657,1721287978419,-500.0,0.00023013,2]
[332520658,1721287978429,-2008.64,0.00023013,2]
[332520659,1721287978441,-661.47,0.00023013,2]
[332520660,1721287978452,-503.25965163,0.00023013,2]
[332520661,1721287978464,-500.0,0.00023013,2]
[332520662,1721287978474,-707.34,0.00023013,2]
[332520663,1721287978484,-776.84,0.00023013,2]
[332520664,1721287978494,-500.0,0.00023013,2]
[332520665,1721287978505,-6067.08,0.00023013,2]
[332520666,1721287978515,-500.0,0.00023013,2]
[332520667,1721287978525,-2197.33,0.00023013,2]
[332520668,1721287978535,-500.0,0.00023013,2]
[332520669,1721287978545,-500.0,0.00023013,2]
[332520670,1721287978555,-813.45,0.00023013,2]
[332520671,1721287978566,-500.0,0.00023013,2]
[332520672,1721287978576,-500.0,0.00023013,2]
[332520673,1721287978586,-500.0,0.00023013,2]
[332520674,1721287978596,-500.0,0.00023013,2]
[332520675,1721287978607,-1222.6,0.00023013,2]
[332520676,1721287978618,-685.95,0.00023013,2]
[332520677,1721287978629,-885.84,0.00023013,2]
[332520678,1721287978643,-500.0,0.00023013,2]
[332520679,1721287978654,-500.0,0.00023013,2]
[332520680,1721287978664,-500.0,0.00023013,2]
[332520681,1721287978675,-703.44,0.00023013,2]
[332520682,1721287978685,-589.04,0.00023013,2]
[332520683,1721287978695,-919.77,0.00023013,2]
[332520684,1721287978706,-500.0,0.00023013,2]
[332520685,1721287978717,-500.0,0.00023013,2]
[332520686,1721287978727,-2956.08,0.00023013,2]
[332520687,1721287978737,-500.0,0.00023013,2]
[332520688,1721287978747,-500.0,0.00023013,2]
[332520689,1721287978756,-699.95,0.00023013,2]
[332520690,1721287978766,-500.0,0.00023013,2]
[332520691,1721287978776,-758.73,0.00023013,2]
[332520692,1721287978786,-500.0,0.00023013,2]
[332520693,1721287978797,-1023.99,0.00023013,2]
[332520694,1721287978807,-500.0,0.00023013,2]
[332520695,1721287978817,-500.0,0.00023013,2]
[332520696,1721287978827,-500.0,0.00023013,2]
[332520697,1721287978838,-500.0,0.00023013,2]
[332520698,1721287978848,-893.45,0.00023013,2]
[332520699,1721287978858,-1159.85,0.00023013,2]
[332520700,1721287978867,-500.0,0.00023013,2]
[332520701,1721287978878,-500.0,0.00023013,2]
[332520702,1721287978888,-500.0,0.00023013,2]
[332520703,1721287978898,-500.0,0.00023013,2]
[332520704,1721287978908,-500.0,0.00023013,2]
[332520705,1721287978918,-799.42,0.00023013,2]
[332520706,1721287978928,-500.0,0.00023013,2]
[332520707,1721287978939,-500.0,0.00023013,2]
[332520708,1721287978950,-500.0,0.00023013,2]
[332520709,1721287978960,-500.0,0.00023013,2]
[332520710,1721287978971,-500.0,0.00023013,2]
[332520711,1721287978981,-500.0,0.00023013,2]
[332520712,1721287978992,-500.0,0.00023013,2]
[332520713,1721287979002,-622.67,0.00023013,2]
[332520714,1721287979013,-500.0,0.00023013,2]
[332520715,1721287979024,-1997.06,0.00023013,2]
[332520716,1721287979034,-500.0,0.00023013,2]
[332520717,1721287979045,-973.9,0.00023013,2]
[332520718,1721287979055,-3632.25,0.00023013,2]
[332520719,1721287979066,-600.0,0.00023022,2]
[332520720,1721287979076,-445.12807451,0.00023029,2]
[332520721,1721287979087,-550.98546916,0.00023032,2]
[332520722,1721287979097,-169.51426168,0.00023034,2]
[332520723,1721287979108,-550.98546916,0.00023037,2]
[332520724,1721287979118,-449.17565101,0.00023055,2]
[332520725,1721287979128,-371.32697632,0.00023057,2]
[332520726,1721287979139,-550.98546916,0.00023068,2]
[332520727,1721287979149,-150.0,0.00023071,2]
[332520728,1721287979160,-414.54398897,0.00023073,2]
[332520729,1721287979171,-161.84605211,0.00023075,2]
[332520730,1721287979182,-414.54398897,0.00023141,2]
[332520731,1721287979192,-979.61,0.00023142,2]
[332520732,1721287979202,-166.6666667,0.00023143,2]
[332520733,1721287979212,-161.84605211,0.00023149,2]
[332520734,1721287979222,-445.12807451,0.00023168,2]
[332520735,1721287979232,-150.18315018,0.00023174,2]
[332520736,1721287979243,-2062.94975587,0.00023187,2]
[332520737,1721287979253,-2000.0,0.000232,2]
[332520738,1721287979263,-517.0,0.000232,2]
[332520739,1721287979274,-2000.0,0.000232,2]
[332520740,1721287979284,-2585.0,0.000232,2]
[332520741,1721287979294,-2585.0,0.000232,2]
[332520742,1721287979304,-2000.0,0.000232,2]
[332520743,1721287979315,-1013.98,0.000232,2]
[332520744,1721287979325,-304.34,0.000232,2]
[332520745,1721287979335,-181.72285012,0.00023212,2]
[332520746,1721287979346,-1164.42184754,0.00023214,2]
[332520747,1721287979356,-1054.0,0.00023247,2]
[332520748,1721287979366,-600.0,0.00023247,2]
[332520749,1721287979377,-150.20291126,0.00023252,2]
[332520750,1721287979387,-157.03911617,0.00023257,2]
[332520751,1721287979397,-445.12807451,0.00023259,2]
[332520752,1721287979410,-166.66666666,0.0002326,2]
[332520753,1721287979420,-14484.68314156,0.00023287,7]
[332520754,1721287979430,-500.0,0.00023287,2]
[332520755,1721287979440,-1548.92,0.00023287,2]
[332520756,1721287979451,-158.49121522,0.00023287,2]
[332520757,1721287979462,-500.0,0.00023287,2]
[332520758,1721287979472,-500.0,0.00023287,2]
[332520759,1721287979481,-503.45298637,0.00023287,2]
[332520760,1721287979492,-500.0,0.00023287,2]
[332520761,1721287979502,-500.0,0.00023287,2]
[332520762,1721287979512,-500.0,0.00023287,2]
[332520763,1721287979522,-500.0,0.00023287,2]
[332520764,1721287979532,-510.6646359,0.00023287,2]
[332520765,1721287979542,-500.0,0.00023287,2]
[332520766,1721287979552,-500.0,0.00023287,2]
[332520767,1721287979562,-505.7971984,0.00023287,2]
[332520768,1721287979572,-500.0,0.00023287,2]
[332520769,1721287979582,-537.36357915,0.00023287,2]
[332520770,1721287979592,-500.0,0.00023287,2]
[332520771,1721287979602,-529.4394654,0.00023287,2]
[332520772,1721287979612,-500.0,0.00023287,2]
[332520773,1721287979622,-500.0,0.00023287,2]
[332520774,1721287979636,-391.61528251,0.00023287,2]
[332520775,1721287979647,-509.63240513,0.00023287,2]
[332520776,1721287979658,-500.0,0.00023287,2]
[332520777,1721287979669,-500.0,0.00023287,2]
[332520778,1721287979680,-500.0,0.00023287,2]
[332520779,1721287979691,-500.0,0.00023287,2]
[332520780,1721287979701,-500.0,0.00023287,2]
[332520781,1721287979713,-500.0,0.00023287,2]
[332520782,1721287979724,-508.94230353,0.00023287,2]
[332520783,1721287979734,-500.0,0.00023287,2]
[332520784,1721287979744,-507.44795844,0.00023287,2]
[332520785,1721287979754,-903.45,0.00023287,2]
[332520786,1721287979764,-500.0,0.00023287,2]
[332520787,1721287979774,-500.0,0.00023287,2]
[332520788,1721287979783,-500.0,0.00023287,2]
[332520789,1721287979793,-500.0,0.00023287,2]
[332520790,1721287979804,-500.0,0.00023287,2]
[332520791,1721287979814,-873.73,0.00023287,2]
[332520792,1721287979824,-639.20210128,0.00023287,2]
[332520793,1721287979834,-496.24702648,0.00023287,2]
[332520794,1721287979844,-500.0,0.00023287,2]
[332520795,1721287979854,-500.0,0.00023287,2]
[332520796,1721287979864,-500.0,0.00023287,2]
[332520797,1721287979874,-500.0,0.00023287,2]
[332520798,1721287979884,-500.0,0.00023287,2]
[332520799,1721287979895,-500.0,0.00023287,2]
[332520800,1721287979905,-500.0,0.00023287,2]
[332520801,1721287979915,-500.0,0.00023287,2]
[332520802,1721287979925,-1146.78,0.00023287,2]
[332520803,1721287979935,-500.0,0.00023287,2]
[332520804,1721287979946,-438.9979847,0.00023287,2]
[332520805,1721287979957,-500.0,0.00023287,2]
[332520806,1721287979968,-500.0,0.00023287,2]
[332520807,1721287979978,-500.0,0.00023287,2]
[332520808,1721287979989,-500.0,0.00023287,2]
[332520809,1721287979999,-500.0,0.00023287,2]
[332520810,1721287980009,-755.65,0.00023287,2]
[332520811,1721287980019,-500.0,0.00023287,2]
[332520812,1721287980029,-500.0,0.00023287,2]
[332520813,1721287980039,-500.0,0.00023287,2]
[332520814,1721287980049,-500.0,0.00023287,2]
[332520815,1721287980059,-500.0,0.00023287,2]
[332520816,1721287980069,-500.0,0.00023287,2]
[332520817,1721287980079,-500.0,0.00023287,2]
[332520818,1721287980090,-1014.34,0.00023287,2]
[332520819,1721287980100,-1117.53,0.00023287,2]
[332520820,1721287980111,-500.0,0.00023287,2]
[332520821,1721287980121,-500.0,0.00023287,2]
[332520822,1721287980131,-500.0,0.00023287,2]
[332520823,1721287980141,-500.0,0.00023287,2]
[332520824,1721287980151,-500.0,0.00023287,2]
[332520825,1721287980161,-500.0,0.00023287,2]
[332520826,1721287980171,-500.0,0.00023287,2]
[332520827,1721287980181,-500.0,0.00023287,2]
[332520828,1721287980191,-500.0,0.00023287,2]
[332520829,1721287980202,-500.0,0.00023287,2]
[332520830,1721287980212,-500.0,0.00023287,2]
[332520831,1721287980223,-500.0,0.00023287,2]
[332520832,1721287980233,-500.0,0.00023287,2]
[332520833,1721287980243,-500.0,0.00023287,2]
[332520834,1721287980253,-500.0,0.00023287,2]
[332520835,1721287980264,-500.0,0.00023287,2]
[332520836,1721287980274,-500.0,0.00023287,2]
[332520837,1721287980284,-500.0,0.00023287,2]
[332520838,1721287980294,-500.0,0.00023287,2]
[332520839,1721287980305,-500.0,0.00023287,2]
[332520840,1721287980316,-500.0,0.00023287,2]
[332520841,1721287980327,-926.9,0.00023287,2]
[332520842,1721287980337,-500.0,0.00023287,2]
[332520843,1721287980348,-500.0,0.00023287,2]
[332520844,1721287980357,-500.0,0.00023287,2]
[332520845,1721287980369,-500.0,0.00023287,2]
[332520846,1721287980379,-500.0,0.00023287,2]
[332520847,1721287980389,-500.0,0.00023287,2]
[332520848,1721287980399,-559.52,0.00023287,2]
[332520849,1721287980411,-1202.57,0.00023287,2]
[332520850,1721287980422,-500.0,0.00023287,2]
[332520851,1721287980432,-500.0,0.00023287,2]
[332520852,1721287980442,-500.0,0.00023287,2]
[332520853,1721287980777,-500.0,0.00023287,2]
[332520854,1721287980789,-500.0,0.00023287,2]
[332520855,1721287980799,-500.0,0.00023287,2]
[332520856,1721287980809,-500.0,0.00023287,2]
[332520857,1721287980819,-500.0,0.00023287,2]
[332520858,1721287980829,-686.6,0.00023287,2]
[332520859,1721287980839,-500.0,0.00023287,2]
[332520860,1721287980849,-500.0,0.00023287,2]
[332520861,1721287980859,-515.27344247,0.00023287,2]
[332520862,1721287980869,-500.0,0.00023287,2]
[332520863,1721287980879,-500.0,0.00023287,2]
[332520864,1721287980889,-500.0,0.00023287,2]
[332520865,1721287980899,-698.02,0.00023287,2]
[332520866,1721287980910,-500.0,0.00023287,2]
[332520867,1721287980920,-500.0,0.00023287,2]
[332520868,1721287980929,-500.0,0.00023287,2]
[332520869,1721287980939,-500.0,0.00023287,2]
[332520870,1721287980949,-568.02,0.00023287,2]
[332520871,1721287980960,-500.0,0.00023287,2]
[332520872,1721287980970,-500.0,0.00023287,2]
[332520873,1721287980980,-500.0,0.00023287,2]
[332520874,1721287980990,-500.0,0.00023287,2]
[332520875,1721287981000,-500.0,0.00023287,2]
[332520876,1721287981010,-500.0,0.00023287,2]
[332520877,1721287981020,-500.0,0.00023287,2]
[332520878,1721287981030,-500.0,0.00023287,2]
[332520879,1721287981040,-500.0,0.00023287,2]
[332520880,1721287981050,-500.0,0.00023287,2]
[332520881,1721287981060,-500.0,0.00023287,2]
[332520882,1721287981070,-506.5,0.00023287,2]
[332520883,1721287981080,-505.7455419,0.00023287,2]
[332520884,1721287981090,-500.0,0.00023287,2]
[332520885,1721287981099,-500.0,0.00023287,2]
[332520886,1721287981109,-500.0,0.00023287,2]
[332520887,1721287981118,-579.89,0.00023287,2]
[332520888,1721287981128,-500.0,0.00023287,2]
[332520889,1721287981138,-500.0,0.00023287,2]
[332520890,1721287981148,-500.0,0.00023287,2]
[332520891,1721287981160,-500.0,0.00023287,2]
[332520892,1721287981169,-888.04,0.00023287,2]
[332520893,1721287981179,-877.77,0.00023287,2]
[332520894,1721287981189,-500.0,0.00023287,2]
[332520895,1721287981198,-500.0,0.00023287,2]
[332520896,1721287981207,-500.0,0.00023287,2]
[332520897,1721287981217,-500.0,0.00023287,2]
[332520898,1721287981226,-500.0,0.00023287,2]
[332520899,1721287981236,-500.0,0.00023287,2]
[332520900,1721287981245,-500.0,0.00023287,2]
[332520901,1721287981255,-500.0,0.00023287,2]
[332520902,1721287981265,-500.0,0.00023287,2]
[332520903,1721287981275,-500.0,0.00023287,2]
[332520904,1721287981284,-500.0,0.00023287,2]
[332520905,1721287981293,-500.0,0.00023287,2]
[332520906,1721287981303,-500.0,0.00023287,2]
[332520907,1721287981313,-500.0,0.00023287,2]
[332520908,1721287981323,-500.0,0.00023287,2]
[332520909,1721287981332,-689.95,0.00023287,2]
[332520910,1721287981342,-173.7283766,0.00023287,2]
[332520911,1721287981351,-500.0,0.00023287,2]
[332520912,1721287981361,-500.0,0.00023287,2]
[332520913,1721287981370,-500.0,0.00023287,2]
[332520914,1721287981380,-500.0,0.00023287,2]
[332520915,1721287981390,-500.0,0.00023287,2]
[332520916,1721287981399,-887.13,0.00023287,2]
[332520917,1721287981411,-500.0,0.00023287,2]
[332520918,1721287981420,-512.75,0.00023287,2]
[332520919,1721287981430,-500.0,0.00023287,2]
[332520920,1721287981440,-500.0,0.00023287,2]
[332520921,1721287981449,-500.0,0.00023287,2]
[332520922,1721287981459,-500.0,0.00023287,2]
[332520923,1721287981468,-500.0,0.00023287,2]
[332520924,1721287981478,-500.0,0.00023287,2]
[332520925,1721287981487,-500.0,0.00023287,2]
[332520926,1721287981498,-500.0,0.00023287,2]
[332520927,1721287981508,-500.0,0.00023287,2]
[332520928,1721287981518,-500.0,0.00023287,2]
[332520929,1721287981528,-500.0,0.00023287,2]
[332520930,1721287981538,-500.0,0.00023287,2]
[332520931,1721287981547,-500.0,0.00023287,2]
[332520932,1721287981558,-500.0,0.00023287,2]
[332520933,1721287981567,-918.48,0.00023287,2]
[332520934,1721287981577,-500.0,0.00023287,2]
[332520935,1721287981587,-500.0,0.00023287,2]
[332520936,1721287981596,-500.0,0.00023287,2]
[332520937,1721287981605,-500.0,0.00023287,2]
[332520938,1721287981615,-500.0,0.00023287,2]
[332520939,1721287981625,-1130.16,0.00023287,2]
[332520940,1721287981639,-500.0,0.00023287,2]
[332520941,1721287981649,-500.0,0.00023287,2]
[332520942,1721287981661,-500.0,0.00023287,2]
[332520943,1721287981671,-500.0,0.00023287,2]
[332520944,1721287981681,-500.0,0.00023287,2]
[332520945,1721287981690,-500.0,0.00023287,2]
[332520946,1721287981700,-500.0,0.00023287,2]
[332520947,1721287981712,-500.0,0.00023287,2]
[332520948,1721287981722,-1018.39,0.00023287,2]
[332520949,1721287981732,-500.0,0.00023287,2]
[332520950,1721287981742,-500.0,0.00023287,2]
[332520951,1721287981752,-500.0,0.00023287,2]
[332520952,1721287981761,-500.0,0.00023287,2]
[332520953,1721287981771,-500.0,0.00023287,2]
[332520954,1721287981780,-500.0,0.00023287,2]
[332520955,1721287981790,-500.0,0.00023287,2]
[332520956,1721287981800,-500.0,0.00023287,2]
[332520957,1721287981810,-500.0,0.00023287,2]
[332520958,1721287981819,-582.9,0.00023287,2]
[332520959,1721287981829,-500.0,0.00023287,2]
[332520960,1721287981839,-500.0,0.00023287,2]
[332520961,1721287981848,-500.0,0.00023287,2]
[332520962,1721287981858,-500.0,0.00023287,2]
[332520963,1721287981867,-500.0,0.00023287,2]
[332520964,1721287981877,-500.0,0.00023287,2]
[332520965,1721287981887,-500.0,0.00023287,2]
[332520966,1721287981897,-500.0,0.00023287,2]
[332520967,1721287981911,-500.0,0.00023287,2]
[332520968,1721287981922,-502.63940036,0.00023287,2]
[332520969,1721287981932,-682.95,0.00023287,2]
[332520970,1721287981942,-500.0,0.00023287,2]
[332520971,1721287981955,-500.0,0.00023287,2]
[332520972,1721287981965,-500.0,0.00023287,2]
[332520973,1721287981974,-500.0,0.00023287,2]
[332520974,1721287981985,-629.0,0.00023287,2]
[332520975,1721287981995,-500.0,0.00023287,2]
[332520976,1721287982005,-500.0,0.00023287,2]
[332520977,1721287982015,-1036.97,0.00023287,2]